Cogmind - Beta 17 @@@ ROGUE MODE // 2026.07.24 @ 09:55:18 Player: aperiodic Result: Destroyed by R5-WF9(R) with Subdweller Machine Gun Performance ------------- Evolutions (0) 0 Regions Visited (2) 400 Robots Destroyed (33) 165 Value Destroyed (974) 974 Prototype IDs (16) 320 Alien Tech Used (0) 0 Bonus (0) 0 TOTAL SCORE: 1859 Bonus ------- None Cogmind --------- Core Integrity 0/250 Matter 300/300 Energy 145/200 System Corruption 0% Temperature Cool (0) Movement Rolling (115) Ox1 Location -10/Subcaves Parts ------- > --- POWER (1) -------- Subdweller Power Source > --- PROPULSION (2) --- Compact Wheel Compact Wheel > --- UTILITY (2) ------ Scrap Shield > --- WEAPON (2) ------- Subdweller Beam Cannon Subdweller Beam Cannon > --- INVENTORY (5) ---- Meta Core Scrap Shield Subdweller Shrapnel Launcher Multitool Peak State ------------ > --- POWER ------------ Subdweller Power Source > --- PROPULSION ------- Compact Wheel Compact Wheel > --- UTILITY ---------- Scrap Shield > --- WEAPON ----------- Subdweller Machine Gun Makeshift Sword > --- INVENTORY -------- Subdweller Monowheel Makeshift Shrapnel Gun Grenade Launcher Subdweller Shrapnel Launcher Mining Laser [Rating: 15] Favorites ----------- Power Subdweller Power Source Engine Subdweller Power Source Propulsion Compact Wheel Treads Light Treads Wheel Compact Wheel Utility Scrap Shield Device Seismic Detector Storage High-capacity Storage Unit Protection Scrap Shield Weapon Light Assault Rifle Energy Gun Small Laser Energy Cannon Subdweller Beam Cannon Ballistic Gun Light Assault Rifle Launcher Subdweller Shrapnel Launcher Special Weapon Mining Laser Slashing Weapon Makeshift Sword Build | -11 -10 -10 ------- Run | Yrd Mat Sub Slots Evolved . | . . . Power . | . . . Propulsion . | . . . Utility . | . . . Weapon . | . . . Parts Attached 35 | 7 8 20 Power 5 | 1 1 3 Engine 5 | 1 1 3 Core . | . . . Reactor . | . . . Propulsion 8 | 2 2 4 Treads 3 | . 2 1 Leg . | . . . Wheel 5 | 2 . 3 Hover . | . . . Flight . | . . . Utility 7 | 2 2 3 Device 2 | 1 . 1 Storage 3 | 1 2 . Processor . | . . . Hackware . | . . . Protection 2 | . . 2 Artifact . | . . . Weapon 15 | 2 3 10 Energy Gun 3 | . 2 1 Energy Cannon 2 | . . 2 Ballistic Gun 6 | 2 . 4 Ballistic Cannon . | . . . Launcher 2 | . . 2 Special Weapon 1 | . 1 . Impact Weapon . | . . . Slashing Weapon 1 | . . 1 Piercing Weapon . | . . . Special Melee Weapon . | . . . Unidentified Prototypes . | . . . Parts Lost 10 | . 1 9 Power 3 | . 1 2 Propulsion 3 | . . 3 Utility 1 | . . 1 Weapon 3 | . . 3 Highest Loss Streak 3 | . 1 3 To Critical Strikes . | . . . Average Backups 6 | 3 11 4 Power . | . . . Propulsion 1 | 2 4 . Utility 1 | . 2 . Weapon 3 | . 4 3 Tool/Special . | . . . Unused Backups 7 | . . 7 Power . | . . . Propulsion . | . . . Utility 4 | . . 4 Weapon 1 | . . 1 Tool/Special 2 | . . 2 Average Slot Usage (%) 86 | . 98 81 Engine 13 | . 13 13 Treads 5 | . 16 . Wheel 19 | . 11 22 Device 7 | . 14 5 Storage 4 | . 14 . Protection 7 | . . 10 Energy Gun 6 | . 10 4 Energy Cannon 5 | . . 7 Ballistic Gun 8 | . 15 5 Special Weapon 1 | . . 1 Slashing Weapon 6 | . . 8 Peak Build Rating 15 | 7 8 15 Average Rating 10 | 5 7 12 On Entrance 5 | . 7 8 Avg Prop Armor Cover (%) 12 | . . 12 Naked Turns . | . . . Heaviest Build 47 | 11 47 47 Greatest Support 40 | 20 40 40 Greatest Overweight (x) 2 | . 2 2 Average Overweight (x) . | . 1 . Largest Inventory Capacity 20 | 8 20 20 Average Capacity 9 | 7 17 5 Most Carried 14 | 7 14 14 Average Carried 7 | 4 11 5 Final Capacity 20 | 8 20 5 Final Carried 14 | 7 14 5 Class Distribution -------------------- 48% | Subdweller-Mutant 37% | Mutant 13% | Scavenger-Mutant Dominant Class ---------------- Mutant | -10/Materials Subdweller-Mutant | -10/Subcaves Resources | -11 -10 -10 ----------- Run | Yrd Mat Sub Matter Collected 1041 | 284 272 485 Remotely . | . . . Salvage Created 1159 | 125 297 737 Parts 75 | 7 18 50 Haulers Intercepted 1 | . 1 . Recyclers Shooed 4 | . 4 . Parts Field Recycled . | . . . Retrieved Matter . | . . . Parts Self-Destructed 13 | . . 13 Prevented . | . . . Parts Restored . | . . . Kills | -11 -10 -10 ------- Run | Yrd Mat Sub Combat Hostiles Destroyed 26 | . 4 22 Melee 2 | . . 2 Guns 15 | . 4 11 Cannons 5 | . . 5 AOE 3 | . . 3 Classes Destroyed 8 | 2 3 3 Tunneler 2 | 2 . . Hauler 1 | . 1 . Recycler 2 | 1 1 . Watcher 2 | . 2 . Swarmer 4 | . . 4 Grunt 4 | . 4 . Sentry 1 | . . 1 Subdweller 17 | . . 17 Best Kill Streak 3 | 2 2 3 Combat Bots Only 3 | . 2 3 Max Kills in Single Turn 1 | 1 1 1 Gunslinging . | . . . Exploded 1 | . . 1 Melee 1 | . . 1 Uniques/NPCs Destroyed . | . . . Combat | -11 -10 -10 -------- Run | Yrd Mat Sub Hostile Shots Fired 107 | . 23 84 Missed 23 | . 5 18 Hits 84 | . 18 66 Projectile 84 | . 18 66 AOE 10 | . . 10 Critical Strikes 2 | . 2 . Damage Taken 1879 | . 222 1657 Core 255 | . 10 245 Absorbed by Shields . | . . . Core Remaining (%) 100 | 100 . . Volleys Fired 151 | 7 55 89 Largest 2 | 2 2 2 Hottest 100 | 40 100 100 Shots Fired 234 | 14 100 120 Gun 178 | 14 94 70 Cannon 31 | . . 31 Launcher 3 | . . 3 Special 22 | . 6 16 Kinetic 117 | 14 70 33 Thermal 116 | . 30 86 Explosive 1 | . . 1 Electromagnetic . | . . . Robot Hit Streak 29 | 6 8 29 Robot Miss Streak 4 | 1 4 3 Penetration Max . | . . . Secondary Targets 1 | . . 1 Max Gunslinging Chain 1 | . . 1 Shots Hit Robots 159 | 10 60 89 Core Hits 63 | 7 22 34 Critical Kills 1 | . . 1 Critical Parts Destroyed . | . . . Critical Strikes 3 | . 2 1 Burn 2 | . 2 . Meltdown 1 | . . 1 Melee Attacks 20 | . . 20 Impact . | . . . Slashing 20 | . . 20 Piercing . | . . . Sneak Attacks 1 | . . 1 Combat Hostiles . | . . . Follow-up Attacks . | . . . Damage Inflicted 2565 | 77 551 1937 Guns 1472 | 77 551 844 Cannons 627 | . . 627 Explosions 214 | . . 214 Melee 252 | . . 252 Ramming . | . . . Kinetic 1036 | 77 372 587 Thermal 1214 | . 179 1035 Explosive 63 | . . 63 Electromagnetic . | . . . Impact . | . . . Slashing 252 | . . 252 Piercing . | . . . Highest Corruption . | . . . Average Corruption . | . . . Corruption Purged . | . . . Corruption Blocked . | . . . Overload Shots . | . . . Overflow Damage 46 | . . 46 Projectiles . | . . . Explosions 13 | . . 13 Melee 33 | . . 33 Knockbacks . | . . . Impact . | . . . Kinetic . | . . . Secondary . | . . . Self-Inflicted Damage . | . . . Shots . | . . . Rammed . | . . . Targets Rammed . | . . . Kicked . | . . . Crushed . | . . . Highest Temperature 104 | . 104 1 Average Temperature 28 | . 29 1 Received Heat Transfer 276 | . 162 114 Siege Activations . | . . . Martial Activations . | . . . Shielding Activations . | . . . Robots Disrupted . | . . . Combat Hostiles . | . . . Robots Corrupted . | . . . Combat Hostiles . | . . . Parts Fried . | . . . Impact Corruptions . | . . . Robots Melted 1 | . . 1 Combat Hostiles 1 | . . 1 Parts Melted 2 | . . 2 Heat Transferred 2537 | . 654 1883 Parts Sabotaged . | . . . Parts Stolen . | . . . Parts Stripped . | . . . Power Chain Reactions . | . . . Alert | -11 -10 -10 ------- Run | Yrd Mat Sub Maximum Alert Level . | . . . Low Security (%) 100 | 100 100 . Level 1 . | . . . Level 2 . | . . . Level 3 . | . . . Level 4 . | . . . Level 5 . | . . . High Security . | . . . Max Security . | . . . Peak Influence 40 | 10 40 . Initial . | . . . Average 5 | . 5 . Influence Increases 313 | 15 188 110 Destroy 0b10 Robot/C 180 | . 80 100 Destroy 0b10 Robot/NC 35 | 15 20 . Destroy Leader 36 | . 26 10 Successful Hack 26 | . 26 . Select Force Hacks 30 | . 30 . Destroy Structure 6 | . 6 . Influence Decreases 313 | 15 180 118 Entered New Map 4 | . . 4 Time Decay 299 | 15 170 114 Lost Part 10 | . 10 . Squads Dispatched 2 | . 2 . Investigation 2 | . 2 . Extermination . | . . . Reinforcement . | . . . Assault . | . . . Garrison . | . . . Intercept . | . . . Searches Triggered . | . . . Construction Impeded . | . . . Haulers Reinforced . | . . . Active Scanning Responses . | . . . Cargo Convoy Interrupts . | . . . Stealth | -11 -10 -10 --------- Run | Yrd Mat Sub Distress Signals 1 | . 1 . Communications Jammed . | . . . Distress Signals . | . . . Times Spotted 39 | . 11 28 Peak Tracking Total 3 | . 2 3 Tactical Retreats 2 | . . 2 Traps | -11 -10 -10 ------- Run | Yrd Mat Sub Traps Triggered 4 | . 4 . Indirectly . | . . . Trap Hack Attempts . | . . . Triggered . | . . . Disarmed . | . . . Reprogrammed . | . . . Reused . | . . . Traps Extracted . | . . . Installed . | . . . Triggered . | . . . Machines | -11 -10 -10 ---------- Run | Yrd Mat Sub Machines Disabled . | . . . Max in Single Turn . | . . . Machines Repaired . | . . . Machines Dismantled . | . . . Machines Sabotaged . | . . . Overloaded Fab Kills . | . . . Hacking | -11 -10 -10 --------- Run | Yrd Mat Sub Machines Accessed 11 | . 9 2 Terminals 8 | . 8 . Fabricators . | . . . Repair Stations . | . . . Recycling Units 1 | . 1 . Scanalyzers . | . . . Garrison Access . | . . . Total Hacks 29 | . 25 4 Successful 17 | . 13 4 Failed 12 | . 12 . Catastrophic 3 | . 3 . Database Lockouts . | . . . Manual 23 | . 23 . Terminals 24 | . 24 . Fabricators . | . . . Repair Stations . | . . . Recycling Units 1 | . 1 . Scanalyzers . | . . . Garrison Access . | . . . Terminal Hacks 8 | . 4 4 Record 3 | . . 3 Robot Analysis 2 | . 2 . Prototype ID Bank 1 | . 1 . Locate Traps 1 | . 1 . Proto ID Catalog 1 | . . 1 Fabricator Hacks . | . . . Repair Station Hacks . | . . . Recycling Unit Hacks . | . . . Scanalyzer . | . . . Garrison Access Hacks . | . . . Unauthorized Hacks 9 | . 9 . Terminals 8 | . 8 . Track 1 | . 1 . Botnet 1 | . 1 . Operators 1 | . 1 . Skim 5 | . 5 . Fabricators . | . . . Repair Stations . | . . . Recycling Units 1 | . 1 . Tunnel 1 | . 1 . Scanalyzers . | . . . Garrison Access . | . . . Data Cores Recovered . | . . . Used . | . . . Hacking Detections 7 | . 7 . Full Trace Events . | . . . Feedback Events . | . . . Feedback Blocked . | . . . Robot Schematics Acquired . | . . . Robots Built . | . . . Authchips . | . . . Time . | . . . Total Robot Build Rating . | . . . Part Schematics Acquired . | . . . Parts Built . | . . . Authchips . | . . . Time . | . . . Total Part Build Rating . | . . . Part Studies Acquired . | . . . Parts Repaired . | . . . Time . | . . . Parts Recycled . | . . . Recycled Matter . | . . . Retrieved Matter . | . . . Retrieved Components . | . . . Parts Scanalyzed . | . . . Part Schematics Acquired . | . . . Parts Damaged . | . . . Bothacking | -11 -10 -10 ------------ Run | Yrd Mat Sub Used RIF Installer . | . . . Robots Hacked . | . . . Non-combat . | . . . Combat . | . . . Robot Hacks Applied . | . . . Relay Couplers Released . | . . . Fabnet Peak Effective % . | . . . Robots Rewired . | . . . Allies Hacked . | . . . Hacks Repelled . | . . . Allies | -11 -10 -10 -------- Run | Yrd Mat Sub Total Allies . | . . . Largest Group . | . . . Highest-Rated Group . | . . . Highest-Rated Ally . | . . . Total Orders . | . . . Ally Attacks . | . . . Total Damage . | . . . Kills . | . . . Allies Corrupted . | . . . Allies Melted . | . . . Intel | -11 -10 -10 ------- Run | Yrd Mat Sub Active Infowar (turns) 2004 | 11 1293 700 Seismic 2004 | 11 1293 700 Robot Analysis Total 2 | . 2 . Derelict Logs Recovered 1 | . . 1 Drone Launches . | . . . Drone Recoveries . | . . . Exploration | -11 -10 -10 ------------- Run | Yrd Mat Sub Turns Passed 4656 | 90 1293 3273 Spaces Moved 2810 | 64 668 2078 Core 260 | 3 . 257 Treads 264 | . 246 18 Legs . | . . . Wheels 2286 | 61 422 1803 Hover . | . . . Flight . | . . . Fastest Speed 50 | 50 80 80 Average Speed 119 | 78 146 112 Slowest Speed 240 | 80 240 240 Overloaded Moves . | . . . Propulsion Burnouts . | . . . Robots Hopped . | . . . Potential Cave-ins . | . . . Cave-ins Triggered . | . . . Exploration Rate (%) 56 | 3 84 82 Regions Visited 2 Branch Regions 1 Pre-discovered Areas 4 | . 3 1 Known Exits Taken 1 | . 1 . Unknown Exits Taken 1 | 1 . . Scrap Searched 3 | . . 3 Spaces Dug 11 | . 5 6 Terrain Destroyed 25 | . 6 19 Melee . | . . . Projectile 10 | . 6 4 AOE 15 | . . 15 Terrain Rammed . | . . . Walls Destroyed . | . . . Machines Disabled . | . . . Actions | -11 -10 -10 --------- Run | Yrd Mat Sub Total 3809 | 88 873 2848 Wait 695 | 4 117 574 Move 2808 | 63 667 2078 Hop . | . . . Pick Up 27 | 7 8 12 Fast Attach 28 | 7 7 14 Attach 5 | . 2 3 Detach 1 | . . 1 Swap 36 | . 16 20 Drop 25 | . 1 24 Fire 151 | 7 55 89 Melee 20 | . . 20 Ram . | . . . Kick . | . . . Crush . | . . . Escape Stasis . | . . . Rewire . | . . . Trap . | . . . Miscellaneous 13 | . . 13 Route ------- -11/Scrapyard -10/Materials (discovered 5 exits: *Mat x3 / [*Min] / *Sub) -10/Subcaves (discovered 2 exits: [*Mat x2]) History --------- Turn | Location | Event 17 | -11/Scrapyard | Discovered new exit (range 16) 91 | -11/Scrapyard | Entered Materials 333 | -10/Materials | Build established: Mutant 426 | -10/Materials | Discovered new exit (range 15) 871 | -10/Materials | Discovered new exit (range 13) 1013 | -10/Materials | Learned Storage machine intel 1058 | -10/Materials | Identified exit to Subcaves 1058 | -10/Materials | Identified exit to Materials 1131 | -10/Materials | Learned location of Subcaves (-10) 1384 | -10/Materials | Entered Subcaves 1385 | -10/Subcaves | Approached by a straggling Scientist 1476 | -10/Subcaves | Lost 3 parts (1p1n1w) 1878 | -10/Subcaves | Build established: Subdweller-Mutant 1949 | -10/Subcaves | Visited Clippyterm 1952 | -10/Subcaves | Learned location of Section 7 (-2) 1952 | -10/Subcaves | Learned Factory garrison access intel 2028 | -10/Subcaves | Disturbed a concealed Subdweller 2029 | -10/Subcaves | Ambushed by Subdweller buried in earth 2048 | -10/Subcaves | Ambushed by Subdweller buried in earth 2048 | -10/Subcaves | Ambushed by Subdweller buried in earth 2084 | -10/Subcaves | Lost 3 parts (1p1u1w) 2084 | -10/Subcaves | Core integrity fell below 50% 2157 | -10/Subcaves | Ambushed by Subdwellers from Twisted Machinery 2158 | -10/Subcaves | A swath of the cavern ceiling suddenly collapsed 2525 | -10/Subcaves | Build established: Scavenger-Mutant 3230 | -10/Subcaves | Visited 4L-MR0's lab 3283 | -10/Subcaves | Build established: Subdweller-Mutant 3859 | -10/Subcaves | Learned Materials stockpile data 4010 | -10/Subcaves | Discovered new exit (range 5) 4050 | -10/Subcaves | A swath of the cavern ceiling suddenly collapsed 4167 | -10/Subcaves | Core integrity fell below 20% 4546 | -10/Subcaves | Shifting Twisted Machinery released Sub. Beam Cannon 4556 | -10/Subcaves | Shifting Twisted Machinery released Slug Cannon 4568 | -10/Subcaves | A Subdweller sparked back to life 4612 | -10/Subcaves | Found Meta Core 4639 | -10/Subcaves | Discovered new exit (range 9) 4647 | -10/Subcaves | Ambushed by Subdwellers from Twisted Machinery 4657 | -10/Subcaves | Destroyed by R5-WF9(R) with Subdweller Machine Gun Last Messages --------------- Slug Cannon falls loose from the Twisted Machinery. 04568_ OZ-9DR(R) creaks and sparks as it begins to move. 04570_ Sub. Power Source melted. 04570_ OZ-9DR(R) destroyed. 04596_ RD-C18(R) destroyed. 04603_ QW-XV5(R) affixes Scrap Shield Fragment to Scrap Shield. 04603_ QW-XV5(R) destroyed. 04608_ Scrap Shield Fragment affixed to Scrap Shield (+48). 04611_ Dropped Mak. Sword. 04612_ Acquired Meta Core. 04613_ Acquired 10 matter. 04616_ Scrap Shield Fragment affixed to Scrap Shield (+3). 04639_ EXIT=FOUND 04647_ R5-WF9(R) emerges from the Twisted Machinery. Map ----- +----------------------------------------------------+ | #?????????????????????????????????????????????? | | #?????????????????????????????????????????????? | | ####?????????????????????????????????????????????? | | ?????????????????????????????????????????????????? | | ?????????????????????????????????????????????????? | | ?????????????????????????????????????????????????? | | ???????????????????????????????????? ???????????? | | ???????????????????????????????????# ? ??????? ?? | | ?????????????????????????###?##????# ????? ?? | | ?????????????????????????? ## #?## """????? #? | | ????????????????????????## ## """ #???? ## | | ????????????????????????# " """" #???? # | | ????????????????????????# # "" ""## ##??? " | | ?????????????????????????# "#" #???#"" | | ??????????????????????????# "# ## #####" | | ??????????????????????????## " """ "##""""## | | ??????????????????????????# #" """]""""" " | | ???????????????????????????# "" &%! !] | | ???????????????????????????# # "" # # #%| | | ????????????????????????###??##"" ### ### %[ | | ?????????????????????####;#??### #?#######?#/ | | ?????????????????????# ";#### ##??????#### | | ??????????????????????#RR #???## ## | | ?????????????????????## < # # # # # | | ?????????????????????# " | | ?????????????????????# @ "" ### | | ?????????????????????#" ### ## # # ## #?# | | ?????######??????????##" ??############????## ### | | ?????# ## #???????????##????????????????????##### | | ###### [#??????????????????????????????????## | | ## #??????????????????????????????????# | | ] ##??????????????????????????????????# | | ####????????????????????????????????# | | ##???????????????????????????????# | | ##??????????????????????????????## | | ##??????????????????????????????# ## | | #??????????????????????????????##?# | | #?????????????????????????????????? | | ##????????????????????????????????? | | ## #????????????????????????????????? | | #### ##????????????????????????????????? | | ##??## ##???????????????????????????????## | | #????## #???????????????????????????????? | | #?????## ##??????????###???????####???????? | | #????### ############## ###??#### #######??# | | ####??????# ## ## ##?# #### | | ??????????# ### ### #### ## | | ??????????##### ### ##??## | | ??????????????#### ### #????# | | ######???????????# #?# ## #????# | +----------------------------------------------------+ Best States ------------- Heat Dissipation 25 Coolant Potential 50 Energy Generation 10 Energy Capacity 200 Matter Stores 300 Matter Capacity 300 Sight Range 16 Terrain Scan Density 10 Armor Coverage 800 Evasion (%) 44 Recoil Reduction 2 Item Schematics ----------------- None Robot Schematics ------------------ None Fabricated ------------ Nothing Repaired ---------- Nothing Studied --------- None Alien Tech Used ----------------- None Achievements -------------- None Challenges ------------ None Game ------ Seed DeepBoreChip Manual? 0 Play Time 00:39:04 Cumulative 754.3 hours Start 2026.07.24 @ 09:16:37 End 2026.07.24 @ 09:55:18 Sessions 1 Manual Loads 0 Difficulty Rogue Special Mode None Game No. 262 Rogue 258 Adventurer 4 Explorer 0 Win Type - Total 21 Types 9/2/6/0/0/0/2/2/0/0 Lore% 86 Gallery% 76 Achievement% 59 Wizard Run 0 Options --------- Layout 1 ASCII 0 Keyboard 0 Movement Arrows Keybinds 0 Fullscreen 1 Font 40/SmallcapsGlow Map View 50x40 Zoom Use 0% Tactical HUD 1 Map Filters NONE Filters NONE Steam 1 RUN: 4e588467-0085-497f-8d94-408238520e45